Cogmind - Beta 10.2 @@@ ROGUE MODE // 2021.01.31 @ 20:47:04 Player: CrossedViper Result: Destroyed by Lightning with EMDS Performance ------------- Evolutions (4) 2000 Regions Visited (17) 3400 Robots Destroyed (364) 1820 Value Destroyed (14721) 14721 Prototype IDs (35) 700 Alien Tech Used (0) 0 Bonus (6679) 6679 TOTAL SCORE: 29320 Bonus ------- High Alert Combat Kills 2733 Follower Combat Kills 852 Entered Garrisons 800 Used RIF Installer 2000 Network Hubs Disabled 400 Aligned with FarCom 300 Met R17 at Cetus 500 Friendly Fire -906 Cogmind --------- Core Integrity 0/850 Matter 175/300 Energy 12/100 System Corruption 34% Temperature Cool (0) Movement Treading (180) Ox1 Location -6/Hub_04(d) Parts ------- > --- POWER (1) -------- (None) > --- PROPULSION (4) --- Centrium Heavy Treads > --- UTILITY (7) ------ Large Storage Unit Large Storage Unit High-capacity Storage Unit Centrium Medium Armor Plating Centrium Medium Armor Plating Centrium Medium Armor Plating > --- WEAPON (3) ------- AWS/Autocannon > --- INVENTORY (24) --- Centrium Heavy Treads Improved Cooling System Coolant Injector Improved Weapon Cycler Experimental Utility Shielding Layered Medium Armor Plating Centrium Medium Armor Plating Centrium Medium Armor Plating Advanced Variable Charge Gun Neutron Cannon Improved KE Penetrator Improved KE Penetrator Advanced EMP Blaster Remote Datajack Peak State ------------ > --- POWER ------------ (None) > --- PROPULSION ------- Centrium Heavy Treads Centrium Heavy Treads > --- UTILITY ---------- Large Storage Unit Large Storage Unit High-capacity Storage Unit Centrium Medium Armor Plating Centrium Medium Armor Plating Centrium Medium Armor Plating Centrium Medium Armor Plating > --- WEAPON ----------- AWS/Autocannon > --- INVENTORY -------- Centrium Heavy Treads Improved Cooling System Coolant Injector Improved Weapon Cycler Experimental Utility Shielding Layered Medium Armor Plating Centrium Medium Armor Plating Centrium Medium Armor Plating Advanced Variable Charge Gun Neutron Cannon Improved KE Penetrator Improved KE Penetrator Advanced EMP Blaster Remote Datajack [Rating: 114] Favorites ----------- Power Micro Fission Core Engine Heavy Ion Engine Power Core Micro Fission Core Reactor Quantum Reactor Propulsion Light Treads Treads Light Treads Leg Carbon-fiber Leg Wheel Wheel Hover Unit Combat Airjet Utility Large Storage Unit Device Improved Cooling System Storage Large Storage Unit Processor Armor Integrity Analyzer Hackware Relay Coupler [NC] Protection Layered Light Armor Plating Weapon Flak Gun Energy Gun Advanced Variable Charge Gun Energy Cannon Compact Ion Cannon Ballistic Gun Flak Gun Ballistic Cannon AWS/Autocannon Launcher Advanced EMP Blaster Special Weapon Remote Datajack Slashing Weapon Axe Build | -11 -10 -10 -10 -9 -8 -8 -8 -8 -7 -7 -6 -6 -6 -6 -6 -6 -6 ------- Run | Scr Mat Min Exi Min Mat Gar Mat Gar Fac Gar Fac Gar Fac Ext Cet Arc Hub Slots Evolved 8 | . . . . . 4 . . . 2 . 2 . . . . . . Power . | . . . . . . . . . . . . . . . . . . Propulsion 2 | . . . . . 1 . . . 1 . . . . . . . . Utility 5 | . . . . . 3 . . . 1 . 1 . . . . . . Weapon 1 | . . . . . . . . . . . 1 . . . . . . Parts Attached 234 | . 7 . 3 3 15 17 39 16 19 19 9 14 18 34 13 1 7 Power 15 | . 1 . 1 1 2 . 2 1 2 . . 1 1 2 1 . . Engine 10 | . 1 . 1 . 1 . 2 1 1 . . . 1 2 . . . Core 3 | . . . . 1 1 . . . 1 . . . . . . . . Reactor 2 | . . . . . . . . . . . . 1 . . 1 . . Propulsion 63 | . 2 . 1 . 3 5 10 4 2 4 . 5 4 20 2 . 1 Treads 41 | . 2 . 1 . 3 5 10 1 . 4 . 2 1 9 2 . 1 Leg 15 | . . . . . . . . . . . . 3 1 11 . . . Wheel 2 | . . . . . . . . . . . . . 2 . . . . Hover 5 | . . . . . . . . 3 2 . . . . . . . . Flight . | . . . . . . . . . . . . . . . . . . Utility 72 | . . . . 1 4 5 12 6 9 6 4 5 4 7 5 . 4 Device 13 | . . . . . . . . 3 1 2 1 1 . 2 3 . . Storage 6 | . . . . . 2 . 2 . . 1 . . . . . . 1 Processor 2 | . . . . . . . . . 2 . . . . . . . . Hackware 10 | . . . . . . . 3 . 1 1 2 1 1 1 . . . Protection 41 | . . . . 1 2 5 7 3 5 2 1 3 3 4 2 . 3 Artifact . | . . . . . . . . . . . . . . . . . . Weapon 84 | . 4 . 1 1 6 7 15 5 6 9 5 3 9 5 5 1 2 Energy Gun 5 | . 1 . . . . . 3 . . . . . . . . 1 . Energy Cannon 7 | . . . . . . 2 . . . . 1 2 . 2 . . . Ballistic Gun 51 | . 2 . 1 . 6 3 7 2 5 8 3 1 6 3 3 . 1 Ballistic Cannon 1 | . . . . . . . . . . . . . . . . . 1 Launcher 12 | . 1 . . 1 . 2 2 2 . 1 . . 1 . 2 . . Special Weapon 7 | . . . . . . . 3 . 1 . 1 . 2 . . . . Impact Weapon . | . . . . . . . . . . . . . . . . . . Slashing Weapon 1 | . . . . . . . . 1 . . . . . . . . . Piercing Weapon . | . . . . . . . . . . . . . . . . . . Special Melee Weapon . | . . . . . . . . . . . . . . . . . . Unidentified Prototypes 12 | . . . . . 2 . 3 . 1 . 1 . 1 . 3 1 . Parts Lost 46 | . 5 . . . 2 . 3 1 4 4 . 4 1 13 . . 9 Power 6 | . 1 . . . 1 . . . 1 . . . 1 1 . . 1 Propulsion 14 | . 1 . . . 1 . . 1 . 2 . 3 . 4 . . 2 Utility 11 | . . . . . . . . . 2 1 . . . 4 . . 4 Weapon 15 | . 3 . . . . . 3 . 1 1 . 1 . 4 . . 2 Highest Loss Streak 9 | . 5 . . . 1 . 2 1 1 3 . 1 1 3 . . 9 Average Slot Usage (%) 91 | . 80 85 85 89 80 99 96 98 94 90 86 86 92 97 83 86 84 Engine 5 | . 14 14 14 9 5 9 8 9 3 . . . 4 6 . . . Core 1 | . . . . 4 1 . . . 2 7 6 5 . . . . . Treads 18 | . 19 28 28 28 21 27 26 19 . 11 20 19 6 12 14 13 13 Leg 2 | . 8 . . . . . . . . . . 1 18 11 . . . Hover 3 | . . . . . . . . 6 28 13 . . . . . . . Device 2 | . . . . . . . . 6 3 2 1 4 1 5 9 6 5 Storage 19 | . 14 14 14 14 20 27 20 18 15 17 20 20 20 20 20 20 20 Processor 2 | . . . . . . . . . 7 12 6 6 6 2 . . . Hackware 3 | . . . . . . . 5 . . 4 4 1 4 11 6 6 5 Protection 10 | . . . . 4 13 18 17 20 14 3 5 6 6 5 6 13 13 Energy Cannon 1 | . . . . . . 8 . . . . . 3 2 3 4 . . Ballistic Gun 15 | . 18 28 28 25 16 9 11 13 14 13 18 15 15 16 8 13 16 Naked Turns . | . . . . . . . . . . . . . . . . . . Heaviest Build 152 | 11 11 11 15 24 52 49 60 74 79 81 86 90 95 92 105 102 152 Greatest Support 160 | 20 40 40 40 40 62 62 62 66 88 88 60 90 55 109 160 160 160 Greatest Overweight (x) 9 | . . . . . 1 . 1 3 . 4 1 4 9 9 1 . 1 Average Overweight (x) . | . . . . . . . . . . . 1 . 1 1 . . . Largest Inventory Capacity 24 | . 6 6 6 6 14 14 20 16 16 22 22 22 22 22 22 22 24 Average Capacity 16 | . 6 6 6 6 10 14 15 16 16 18 22 22 22 22 22 22 22 Most Carried 23 | . 6 6 6 6 14 14 16 16 16 22 22 22 22 22 22 22 23 Average Carried 15 | . 4 6 5 5 10 13 14 15 14 18 21 21 18 20 20 22 22 Final Capacity 24 | 6 6 6 6 6 14 14 16 16 16 22 22 22 22 22 22 22 24 Final Carried 22 | 6 6 6 6 6 14 14 16 16 15 22 21 22 22 19 22 22 15 Class Distribution -------------------- 51% | Scavenger-Mutant 20% | Mutant 12% | Scavenger-Gunner 12% | Scavenger-Tank Dominant Class ---------------- Mutant | -10/Materials Mutant | -10/Mines Mutant | -10/Exiles Mutant | -9/Mines Scavenger-Mutant | -8/Materials Scavenger-Mutant | -8/Garrison Scavenger-Mutant | -8/Materials Scavenger-Mutant | -8/Garrison Scavenger-Mutant | -7/Factory Scavenger-Mutant | -7/Garrison Scavenger-Gunner | -6/Factory Scavenger-Gunner | -6/Garrison Scavenger-Gunner | -6/Factory Scavenger-Tank | -6/Extension Scavenger-Mutant | -6/Cetus Scavenger-Tank | -6/Archives Scavenger-Tank | -6/Hub_04(d) Resources | -11 -10 -10 -10 -9 -8 -8 -8 -8 -7 -7 -6 -6 -6 -6 -6 -6 -6 ----------- Run | Scr Mat Min Exi Min Mat Gar Mat Gar Fac Gar Fac Gar Fac Ext Cet Arc Hub Matter Collected 8709 | 200 200 30 . 67 664 519 933 707 1050 612 . 870 552 1657 229 47 372 Remotely . | . . . . . . . . . . . . . . . . . . Salvage Created 17251 | . 520 27 . 67 1167 928 1938 986 1259 1069 64 1105 828 4142 1182 90 1879 Parts 842 | . 42 5 . 5 66 52 126 54 55 51 5 50 37 152 46 4 92 Haulers Intercepted 11 | . 1 . . . 4 . 4 . . . . . . 1 . . 1 Recyclers Shooed 7 | . . . . . 1 . 2 . . . . . 1 3 . . . Parts Field Recycled . | . . . . . . . . . . . . . . . . . . Retrieved Matter . | . . . . . . . . . . . . . . . . . . Parts Self-Destructed . | . . . . . . . . . . . . . . . . . . Prevented . | . . . . . . . . . . . . . . . . . . Kills | -11 -10 -10 -10 -9 -8 -8 -8 -8 -7 -7 -6 -6 -6 -6 -6 -6 -6 ------- Run | Scr Mat Min Exi Min Mat Gar Mat Gar Fac Gar Fac Gar Fac Ext Cet Arc Hub Combat Hostiles Destroyed 265 | . 15 3 . 2 19 26 27 18 17 22 1 21 15 44 17 1 17 Melee 1 | . . 1 . . . . . . . . . . . . . . . Guns 175 | . 10 2 . . 11 11 18 13 17 12 1 15 13 38 . 1 13 Cannons 17 | . . . . . . 2 2 . . . . 6 . 6 . . 1 AOE 51 | . 5 . . 2 8 11 7 4 . 4 . . 2 . 7 . 1 Classes Destroyed 20 | . 4 . . 1 7 . 1 2 2 . . 1 . 1 . . 1 Worker 32 | . 3 . . . 2 . 3 . 4 . . . . 2 . . 18 Builder 20 | . . . . . 3 . 5 . 2 . . . 3 1 . . 6 Tunneler 3 | . . . . 1 . . 1 . . . . . 1 . . . . Hauler 11 | . 1 . . . 4 . 4 . . . . . . 1 . . 1 Recycler 17 | . . . . . 3 . 5 . 2 . . . . 5 . . 2 Carrier 1 | . . . . . . . . . . . . . . 1 . . . Mechanic 3 | . . . . . . . 1 . . . . . . 2 . . . Operator 1 | . . . . . 1 . . . . . . . . . . . . Drone 3 | . . . . . . . . 3 . . . . . . . . . Watcher 10 | . . . . . 1 1 2 . . . . 1 1 1 2 . 1 Swarmer 49 | . 6 3 . 1 3 7 6 3 . 7 . 6 5 . 2 . . Grunt 128 | . 9 . . 1 12 16 14 8 4 7 . 12 7 25 6 . 7 Brawler 5 | . . . . . 1 . . . 2 . . 1 1 . . . . Duelist 6 | . . . . . . . . . 2 2 . . . . 1 . 1 Protector 2 | . . . . . . . . . . . . . . . . . 2 Sentry 36 | . . . . . 2 3 7 2 3 5 1 . 1 7 . 1 4 Specialist 2 | . . . . . . . . 2 . . . . . . . . . Hunter 8 | . . . . . 1 . . . 2 1 . 1 . 1 . . 2 Programmer 7 | . . . . . . . . . 4 . . . 1 1 . . 1 Behemoth 3 | . . . . . . . . . . . . 1 . 2 . . . Cetus Guard 8 | . . . . . . . . . . . . . . . 8 . . Thug 6 | . . . . . . . . . . . . . . 6 . . . Savage 3 | . . . . . . . . . . . . . . 3 . . . Butcher 2 | . . . . . . . . . . . . . . 2 . . . Guerrilla 1 | . . . . . . . . . . . . . . 1 . . . Best Kill Streak 13 | . 10 2 . 2 12 13 12 5 4 7 1 5 3 6 5 1 8 Combat Bots Only 13 | . 10 2 . 1 8 13 6 5 4 7 1 4 3 6 4 1 4 Max Kills in Single Turn 6 | . 2 1 . 2 3 3 3 3 2 2 1 3 3 2 2 1 6 Gunslinging 1 | . . . . . . . . . . . . 1 . . . . . Exploded 3 | . 2 . . 1 2 3 3 3 . 2 . . 2 . 2 . 1 Melee 1 | . . 1 . . . . . . . . . . . . . . . Uniques/NPCs Destroyed . | . . . . . . . . . . . . . . . . . . Combat | -11 -10 -10 -10 -9 -8 -8 -8 -8 -7 -7 -6 -6 -6 -6 -6 -6 -6 -------- Run | Scr Mat Min Exi Min Mat Gar Mat Gar Fac Gar Fac Gar Fac Ext Cet Arc Hub Damage Taken 19078 | . 719 91 . 159 825 1327 1532 556 1308 1160 227 2007 843 3780 228 116 4200 Core 1816 | . 166 7 . 20 71 168 136 51 164 150 30 174 25 307 13 . 334 Absorbed by Shields 309 | . . . . . . . . . . 41 . 35 . 11 222 . . Core Remaining (%) 49 | 100 . . . 22 . . . 22 . 55 . . . . . . . Volleys Fired 933 | . 50 6 . 4 59 72 146 75 122 61 8 67 50 138 20 5 50 Largest 3 | . 2 2 . 1 2 2 2 2 2 2 3 3 3 3 1 3 3 Hottest 213 | . 60 43 . 33 53 138 94 50 56 56 84 146 151 213 36 150 150 Shots Fired 1899 | . 79 12 . 4 126 124 249 132 241 89 12 156 131 372 20 10 142 Gun 1627 | . 71 12 . . 114 85 220 126 239 64 6 115 100 334 1 9 131 Cannon 152 | . . . . . . 27 9 . . . . 41 26 38 . . 11 Launcher 100 | . 8 . . 4 12 12 11 6 . 25 . . 2 . 19 1 . Special 20 | . . . . . . . 9 . 2 . 6 . 3 . . . . Kinetic 1579 | . 63 12 . . 114 85 181 126 239 64 6 115 100 334 1 8 131 Thermal 132 | . . . . . . . 15 . . . . 41 26 38 . 1 11 Explosive 47 | . 8 . . 4 12 12 11 . . . . . . . . . . Electromagnetic 121 | . 8 . . . . 27 33 6 . 25 . . 2 . 19 1 . Robot Hit Streak 24 | . 12 2 . 1 9 24 14 16 22 22 13 11 20 16 17 8 20 Robot Miss Streak 8 | . 3 3 . 5 4 3 5 3 5 8 4 7 4 5 2 . 2 Penetration Max 1 | . . . . . 1 1 . . 1 1 . . 1 1 . . 1 Secondary Targets 28 | . 4 1 . . 1 2 3 3 1 2 . 2 1 6 . . 2 Max Gunslinging Chain 1 | . 1 1 . . 1 1 1 1 1 1 . 1 1 1 . . 1 Autonomous 50 | . . . . . 20 19 . . . . . . . . . . 11 Shots Hit Robots 1239 | . 56 4 . 1 90 81 174 84 148 59 9 124 83 229 8 8 81 Core Hits 770 | . 34 3 . 3 58 41 80 41 53 66 7 121 32 125 27 3 76 Critical Hits 73 | . . . . . 2 1 . . 6 2 . . 7 36 . 2 17 Critical Kills 26 | . . . . . . 1 . . 2 . . . 2 15 . 1 5 Critical Parts Destroyed 42 | . . . . . 1 . . . 4 2 . . 5 19 . 1 10 Melee Attacks 5 | . . . . . . . . 5 . . . . . . . . . Impact . | . . . . . . . . . . . . . . . . . . Slashing 5 | . . . . . . . . 5 . . . . . . . . . Piercing . | . . . . . . . . . . . . . . . . . . Sneak Attacks . | . . . . . . . . . . . . . . . . . . Combat Hostiles . | . . . . . . . . . . . . . . . . . . Follow-up Attacks . | . . . . . . . . . . . . . . . . . . Damage Inflicted 38054 | . 926 31 . 164 3229 2674 3782 2384 3434 1994 119 2451 2196 7300 2108 262 5000 Guns 24621 | . 465 25 . . 1976 1278 2654 1455 3434 995 119 1735 1436 6304 . 201 2544 Cannons 3736 | . . . . . . 468 272 . . . . 716 522 994 . . 764 Explosions 9562 | . 451 . . 158 1253 928 824 929 . 999 . . 227 . 2108 61 1624 Melee . | . . . . . . . . . . . . . . . . . . Ramming 135 | . 10 6 . 6 . . 32 . . . . . 11 2 . . 68 Kinetic 24349 | . 383 25 . . 1976 1278 2027 1455 3434 995 119 1735 1436 6304 . 167 3015 Thermal 3520 | . . . . . . . 397 94 . 34 . 716 522 994 436 34 293 Explosive 3494 | . 451 . . 158 1253 928 620 . . . . . 84 . . . . Electromagnetic 6556 | . 82 . . . . 468 706 835 . 965 . . 143 . 1672 61 1624 Impact . | . . . . . . . . . . . . . . . . . . Slashing . | . . . . . . . . . . . . . . . . . . Piercing . | . . . . . . . . . . . . . . . . . . Highest Corruption 32 | . . . . . . . . . 3 3 2 2 2 2 2 2 32 Average Corruption 2 | . . . . . . . . . 2 3 2 2 2 2 2 2 3 Corruption Purged . | . . . . . . . . . . . . . . . . . . Effects 101 | . . . . . . . . . 9 23 2 19 8 27 1 3 9 Message Errors 23 | . . . . . . . . . 1 4 1 5 1 5 . 2 4 Matter Fused 9 | . . . . . . . . . 2 6 . . . . . . 1 Heat Flow Errors 7 | . . . . . . . . . . 2 . 1 1 3 . . . Energy Discharges 14 | . . . . . . . . . 2 2 1 3 1 3 . . 2 Data Loss (minor) 10 | . . . . . . . . . . 6 . 2 1 1 . . . Targeting Errors 33 | . . . . . . . . . 4 2 . 6 3 14 1 1 2 Weapon Failures 5 | . . . . . . . . . . 1 . 2 1 1 . . . Overload Shots . | . . . . . . . . . . . . . . . . . . Overflow Damage 467 | . 10 . . . 27 96 35 92 . 7 . 10 66 . 91 7 26 Projectiles 103 | . . . . . . 49 25 . . . . 10 19 . . . . Explosions 364 | . 10 . . . 27 47 10 92 . 7 . . 47 . 91 7 26 Melee . | . . . . . . . . . . . . . . . . . . Knockbacks 7 | . . . . . . . . . . . . . . . . . 7 Impact . | . . . . . . . . . . . . . . . . . . Kinetic 5 | . . . . . . . . . . . . . . . . . 5 Secondary 2 | . . . . . . . . . . . . . . . . . 2 Self-Inflicted Damage 782 | . . . . 40 90 120 97 . . 156 . . . . 77 . 202 Shots 21 | . . . . 1 3 3 3 . . 7 . . . . 2 . 2 Rammed 22 | . 5 1 . 2 . . 9 . . . . . . . . . 5 Targets Rammed 26 | . 5 2 . 2 . . 9 . . . . . 1 1 . . 6 Kicked 2 | . . . . . . . . . . . . . 1 1 . . . Crushed 2 | . . 1 . . . . . . . . . . . . . . 1 Highest Temperature 465 | . 134 4 . 12 87 324 465 221 96 207 368 362 215 368 54 . 18 Average Temperature 83 | . 38 2 . 10 25 92 113 77 38 86 112 85 58 114 23 . 12 Received Heat Transfer 4768 | . 294 . . 12 279 558 603 207 261 240 12 489 297 1122 28 9 357 Effects 10 | . . . . . . 1 6 1 . . . . . 2 . . . Shutdowns 4 | . . . . . . . 2 . . . . . . 2 . . . Energy Bleed 5 | . . . . . . 1 4 . . . . . . . . . . Interference 1 | . . . . . . . . 1 . . . . . . . . . Siege Activations 2 | . . . . . . . . . . . . . . . . 1 1 Total Turns 19 | . . . . . . . . . . . . . . . . 7 12 Longest Duration 12 | . . . . . . . . . . . . . . . . 7 12 Robots Corrupted 23 | . . . . . . 2 . 1 . 6 . . . . 11 . 3 Combat Hostiles 20 | . . . . . . 2 . . . 6 . . . . 10 . 2 Parts Fried 41 | . . . . . . 2 . 3 . 7 . . 1 1 11 . 16 Impact Corruptions . | . . . . . . . . . . . . . . . . . . Robots Melted . | . . . . . . . . . . . . . . . . . . Combat Hostiles . | . . . . . . . . . . . . . . . . . . Parts Melted 5 | . . . . . . . . . . . . 1 1 2 . . 1 Heat Transferred 4601 | . . . . . . . 731 100 . 50 . 962 703 1347 301 37 370 Parts Sabotaged . | . . . . . . . . . . . . . . . . . . Parts Stolen . | . . . . . . . . . . . . . . . . . . Parts Stripped . | . . . . . . . . . . . . . . . . . . Power Chain Reactions 12 | . . . . . . . 4 1 . 2 . . . . 5 . . Missiles Intercepted . | . . . . . . . . . . . . . . . . . . Alert | -11 -10 -10 -10 -9 -8 -8 -8 -8 -7 -7 -6 -6 -6 -6 -6 -6 -6 ------- Run | Scr Mat Min Exi Min Mat Gar Mat Gar Fac Gar Fac Gar Fac Ext Cet Arc Hub Peak Influence 1318 | . 437 255 . 190 628 1148 559 503 598 944 510 658 725 1076 994 512 1318 Initial 559 | . . 170 . . 22 270 559 9 263 165 495 63 345 125 467 397 179 Average 493 | . 247 224 . 71 456 937 183 253 357 698 266 356 537 657 720 491 615 Maximum Alert Level 4 | . 2 1 . . 2 4 2 2 2 3 2 2 3 4 3 2 4 Low Security (%) 20 | . 26 21 . 100 4 . 57 43 . 3 54 31 . 10 . . 8 Level 1 21 | . 54 78 . . 19 5 41 39 59 10 2 16 19 12 . 1 8 Level 2 31 | . 18 . . . 76 10 1 17 40 15 42 52 66 25 46 98 45 Level 3 24 | . . . . . . 63 . . . 70 . . 14 52 53 . 37 Level 4 2 | . . . . . . 19 . . . . . . . . . . . Level 5 . | . . . . . . . . . . . . . . . . . . High Security . | . . . . . . . . . . . . . . . . . . Max Security . | . . . . . . . . . . . . . . . . . . Squads Dispatched 39 | . 5 . . 1 4 . 5 . 8 . . . 5 5 . . 6 Investigation 9 | . 3 . . . 1 . 1 . 2 . . . . 1 . . 1 Extermination 3 | . . . . . . . . . 2 . . . 1 . . . . Reinforcement 20 | . 2 . . 1 3 . 4 . 1 . . . 4 2 . . 3 Assault 4 | . . . . . . . . . . . . . . 2 . . 2 Garrison 3 | . . . . . . . . . 3 . . . . . . . . Intercept . | . . . . . . . . . . . . . . . . . . Construction Impeded 7 | . . . . 1 1 . . . . . . . 2 1 . . 2 Haulers Reinforced . | . . . . . . . . . . . . . . . . . . Stealth | -11 -10 -10 -10 -9 -8 -8 -8 -8 -7 -7 -6 -6 -6 -6 -6 -6 -6 --------- Run | Scr Mat Min Exi Min Mat Gar Mat Gar Fac Gar Fac Gar Fac Ext Cet Arc Hub Distress Signals 12 | . 1 . . . 4 2 4 . . . . . 1 . . . . Communications Jammed 90 | . . . . . . . . . . . . . 38 8 29 . 15 Distress Signals 90 | . . . . . . . . . . . . . 38 8 29 . 15 Times Spotted 415 | . 22 4 . 10 35 28 48 16 23 27 2 28 22 63 23 5 59 Peak Tracking Total 30 | . 6 3 . 5 9 8 5 4 3 6 1 6 4 6 5 1 30 Tactical Retreats 38 | . 1 1 . 2 4 2 2 3 . 5 . 3 . 10 . . 5 Traps | -11 -10 -10 -10 -9 -8 -8 -8 -8 -7 -7 -6 -6 -6 -6 -6 -6 -6 ------- Run | Scr Mat Min Exi Min Mat Gar Mat Gar Fac Gar Fac Gar Fac Ext Cet Arc Hub Traps Triggered 28 | . 1 . . . . . 3 5 . 14 1 3 . . . . 1 Indirectly 6 | . . . . . . . . . . 6 . . . . . . . Trap Hack Attempts . | . . . . . . . . . . . . . . . . . . Triggered . | . . . . . . . . . . . . . . . . . . Disarmed . | . . . . . . . . . . . . . . . . . . Reprogrammed . | . . . . . . . . . . . . . . . . . . Reused . | . . . . . . . . . . . . . . . . . . Traps Extracted . | . . . . . . . . . . . . . . . . . . Installed . | . . . . . . . . . . . . . . . . . . Triggered 1 | . . . . . . . . . . . . . . 1 . . . Machines | -11 -10 -10 -10 -9 -8 -8 -8 -8 -7 -7 -6 -6 -6 -6 -6 -6 -6 ---------- Run | Scr Mat Min Exi Min Mat Gar Mat Gar Fac Gar Fac Gar Fac Ext Cet Arc Hub Machines Disabled 40 | . 1 . . . 2 2 . 2 . 3 . 1 5 4 1 1 18 Max in Single Turn 10 | . 1 . . . 1 1 . 1 . 1 . 1 3 1 . 1 10 Garrison Access 1 | . . . . . . . . . . . . . . . . . 1 Garrison Relay 8 | . . . . . . 2 . 2 . 3 . 1 . . . . . Network Hub 2 | . . . . . . . . . . . . . . . . . 2 Machines Sabotaged . | . . . . . . . . . . . . . . . . . . Garrisons Compromised . | . . . . . . . . . . . . . . . . . . Overloaded Fab Kills . | . . . . . . . . . . . . . . . . . . Fab Network Shutdowns . | . . . . . . . . . . . . . . . . . . Hacking | -11 -10 -10 -10 -9 -8 -8 -8 -8 -7 -7 -6 -6 -6 -6 -6 -6 -6 --------- Run | Scr Mat Min Exi Min Mat Gar Mat Gar Fac Gar Fac Gar Fac Ext Cet Arc Hub Machines Accessed 41 | . 2 . 2 2 4 . 5 . 8 . 2 . 2 12 . . 2 Terminals 27 | . 1 . . . 3 . 3 . 4 . 1 . 2 12 . . 1 Fabricators . | . . . . . . . . . . . . . . . . . . Repair Stations 2 | . . . . . . . . . 2 . . . . . . . . Recycling Units 2 | . 1 . . . . . 1 . . . . . . . . . . Scanalyzers 1 | . . . . . . . . . 1 . . . . . . . . Garrison Access 5 | . . . . . 1 . 1 . 1 . 1 . . . . . 1 Total Hacks 92 | . 7 . 2 2 11 . 11 . 17 . 2 . 5 32 . . 3 Successful 38 | . 2 . 2 2 2 . 6 . 4 . 2 . 4 13 . . 1 Failed 53 | . 5 . . . 8 . 5 . 13 . . . 1 19 . . 2 Catastrophic 11 | . 1 . . . 1 . . . 4 . . . . 4 . . 1 Database Lockouts 1 | . . . . . 1 . . . . . . . . . . . . Manual 45 | . 7 . 1 . 7 . 7 . 3 . . . 3 14 1 . 2 Terminals 74 | . 6 . . . 10 . 8 . 10 . 1 . 5 32 . . 2 Fabricators . | . . . . . . . . . . . . . . . . . . Repair Stations 4 | . . . . . . . . . 4 . . . . . . . . Recycling Units 3 | . 1 . . . . . 2 . . . . . . . . . . Scanalyzers 2 | . . . . . . . . . 2 . . . . . . . . Garrison Access 5 | . . . . . 1 . 1 . 1 . 1 . . . . . 1 Terminal Hacks 24 | . 1 . 2 2 1 . 3 . . . 1 . 4 10 . . . Record 1 | . . . 1 . . . . . . . . . . . . . . Robot Analysis 2 | . 1 . . . 1 . . . . . . . . . . . . Open Door 9 | . . . . 2 . . . . . . . . . 7 . . . Branch Access Points 1 | . . . . . . . . . . . . . 1 . . . . Emergency Access Points 1 | . . . . . . . . . . . 1 . . . . . . Terminal Index 2 | . . . . . . . 1 . . . . . . 1 . . . Unreport Threat 7 | . . . . . . . 2 . . . . . 3 2 . . . EX-Prototype ID Bank 1 | . . . 1 . . . . . . . . . . . . . . Fabricator Hacks . | . . . . . . . . . . . . . . . . . . Repair Station Hacks 3 | . . . . . . . . . 3 . . . . . . . . Scan Component 2 | . . . . . . . . . 2 . . . . . . . . Repair 1 | . . . . . . . . . 1 . . . . . . . . Recycling Unit Hacks . | . . . . . . . . . . . . . . . . . . Scanalyzer . | . . . . . . . . . . . . . . . . . . Garrison Access Hacks 5 | . . . . . 1 . 1 . 1 . 1 . . . . . 1 Unlock Access 4 | . . . . . 1 . 1 . 1 . 1 . . . . . . Seal Access 1 | . . . . . . . . . . . . . . . . . 1 Unauthorized Hacks 6 | . 1 . . . . . 2 . . . . . . 3 . . . Terminals 4 | . . . . . . . 1 . . . . . . 3 . . . Botnet 3 | . . . . . . . . . . . . . . 3 . . . Operators 1 | . . . . . . . 1 . . . . . . . . . . Fabricators . | . . . . . . . . . . . . . . . . . . Repair Stations . | . . . . . . . . . . . . . . . . . . Recycling Units 2 | . 1 . . . . . 1 . . . . . . . . . . Tunnel 2 | . 1 . . . . . 1 . . . . . . . . . . Scanalyzers . | . . . . . . . . . . . . . . . . . . Garrison Access . | . . . . . . . . . . . . . . . . . . Data Cores Recovered . | . . . . . . . . . . . . . . . . . . Used . | . . . . . . . . . . . . . . . . . . Hacking Detections 29 | . 1 . . . 3 . 4 . 7 . 2 . 2 8 1 . 1 Full Trace Events 6 | . 1 . . . 2 . . . 2 . . . . . . . 1 Feedback Events . | . . . . . . . . . . . . . . . . . . Feedback Blocked . | . . . . . . . . . . . . . . . . . . Robot Schematics Acquired . | . . . . . . . . . . . . . . . . . . Robots Built . | . . . . . . . . . . . . . . . . . . Matter . | . . . . . . . . . . . . . . . . . . Time . | . . . . . . . . . . . . . . . . . . Total Robot Build Rating . | . . . . . . . . . . . . . . . . . . Part Schematics Acquired . | . . . . . . . . . . . . . . . . . . Parts Built . | . . . . . . . . . . . . . . . . . . Matter . | . . . . . . . . . . . . . . . . . . Time . | . . . . . . . . . . . . . . . . . . Total Part Build Rating . | . . . . . . . . . . . . . . . . . . Parts Repaired 1 | . . . . . . . . . 1 . . . . . . . . Time 50 | . . . . . . . . . 50 . . . . . . . . Parts Recycled . | . . . . . . . . . . . . . . . . . . Recycled Matter . | . . . . . . . . . . . . . . . . . . Retrieved Matter . | . . . . . . . . . . . . . . . . . . Retrieved Components . | . . . . . . . . . . . . . . . . . . Parts Scanalyzed . | . . . . . . . . . . . . . . . . . . Part Schematics Acquired . | . . . . . . . . . . . . . . . . . . Parts Damaged . | . . . . . . . . . . . . . . . . . . Bothacking | -11 -10 -10 -10 -9 -8 -8 -8 -8 -7 -7 -6 -6 -6 -6 -6 -6 -6 ------------ Run | Scr Mat Min Exi Min Mat Gar Mat Gar Fac Gar Fac Gar Fac Ext Cet Arc Hub Used RIF Installer 4 | . . . . . . 1 . 1 . 1 . 1 . . . . . Signal Jammer 1 | . . . . . . . . 1 . . . . . . . . . Patrol Navigation 1 | . . . . . . . . . . 1 . . . . . . . Autooverride 1 | . . . . . . . . . . . . 1 . . . . . Robots Hacked 7 | . . . . . . . 3 . 1 . 1 . 2 . . . . Non-combat 7 | . . . . . . . 3 . 1 . 1 . 2 . . . . Combat . | . . . . . . . . . . . . . . . . . . Robot Hacks Applied 17 | . . . . . . . 8 . 2 . 5 . 2 . . . . parse_system 1 | . . . . . . . . . . . . . 1 . . . . purge_threat 11 | . . . . . . . 6 . 2 . 3 . . . . . . block_reporting 1 | . . . . . . . . . . . 1 . . . . . . map_route 1 | . . . . . . . . . . . . . 1 . . . . formatsys_low 3 | . . . . . . . 2 . . . 1 . . . . . . Relay Couplers Released 35 | . . . . . . 8 . 9 3 12 . 3 . . . . . Machine Destruction 32 | . . . . . . 8 . 9 . 12 . 3 . . . . . Programmers 3 | . . . . . . . . . 3 . . . . . . . . Attached 9 | . . . . . . . 3 . 1 1 2 1 1 . . . . Robots Rewired 5 | . . . . . . . . 1 . . . . . 4 . . . Allies Hacked . | . . . . . . . . . . . . . . . . . . Hacks Repelled 1 | . . . . . . . . . . . . . . 1 . . . Allies | -11 -10 -10 -10 -9 -8 -8 -8 -8 -7 -7 -6 -6 -6 -6 -6 -6 -6 -------- Run | Scr Mat Min Exi Min Mat Gar Mat Gar Fac Gar Fac Gar Fac Ext Cet Arc Hub Total Allies 18 | . . . . . . . 2 . . . 1 . . 13 2 . . Largest Group 4 | . . . . . . . 1 1 . . 1 1 . 4 4 2 1 Highest-Rated Group 381 | . . . . . . . 10 9 . . 10 10 . 213 381 131 94 Highest-Rated Ally 156 | . . . . . . . 10 9 . . 10 10 . 156 156 94 94 Total Orders 3 | . . . . . . . 1 1 . . . 1 . . . . . STAY 3 | . . . . . . . 1 1 . . . 1 . . . . . Ally Attacks 143 | . . . . 14 . . . . . . . . . 58 43 9 19 Total Damage 3966 | . . . . 793 . . . . . . . . . 1105 888 296 884 Kills 30 | . . . . 5 . . . . . . . . . 9 6 3 7 Allies Corrupted . | . . . . . . . . . . . . . . . . . . Allies Melted . | . . . . . . . . . . . . . . . . . . Turrets Deployed 1 | . . . . 1 . . . . . . . . . . . . . Intel | -11 -10 -10 -10 -9 -8 -8 -8 -8 -7 -7 -6 -6 -6 -6 -6 -6 -6 ------- Run | Scr Mat Min Exi Min Mat Gar Mat Gar Fac Gar Fac Gar Fac Ext Cet Arc Hub Robot Analysis Total 2 | . 1 . . . 1 . . . . . . . . . . . . Derelict Logs Recovered . | . . . . . . . . . . . . . . . . . . Drone Launches . | . . . . . . . . . . . . . . . . . . Drone Recoveries . | . . . . . . . . . . . . . . . . . . Exploration | -11 -10 -10 -10 -9 -8 -8 -8 -8 -7 -7 -6 -6 -6 -6 -6 -6 -6 ------------- Run | Scr Mat Min Exi Min Mat Gar Mat Gar Fac Gar Fac Gar Fac Ext Cet Arc Hub Turns Passed 13203 | . 364 114 640 499 897 1523 1334 927 903 1043 277 1213 747 1357 466 118 781 Spaces Moved 6612 | 1 146 60 394 262 432 840 564 432 701 554 129 529 368 535 246 58 361 Core . | . . . . . . . . . . . . . . . . . . Treads 4820 | . 112 60 394 262 432 840 564 286 . 339 129 485 15 237 246 58 361 Legs 610 | 1 34 . . . . . . . . . . 44 330 201 . . . Wheels 120 | . . . . . . . . . . . . . 23 97 . . . Hover 1062 | . . . . . . . . 146 701 215 . . . . . . . Flight . | . . . . . . . . . . . . . . . . . . Fastest Speed 68 | 120 120 160 160 160 155 155 155 142 68 68 180 150 120 120 160 160 160 Average Speed 148 | 120 150 160 160 160 160 155 157 164 68 142 180 176 150 152 160 160 160 Slowest Speed 290 | 120 160 160 160 160 180 155 180 290 72 240 180 240 270 270 180 160 180 Overloaded Moves . | . . . . . . . . . . . . . . . . . . Propulsion Burnouts . | . . . . . . . . . . . . . . . . . . Robots Hopped . | . . . . . . . . . . . . . . . . . . Cave-ins Triggered 1 | . . . . . . . . . . . . . . . . . 1 Exploration Rate (%) 47 | 2 33 16 75 58 40 72 55 46 19 72 3 74 17 73 63 75 63 Regions Visited 17 Branch Regions 7 Pre-discovered Areas 3 | . 1 . 1 . . . 1 . . . . . . . . . . Known Exits Taken 5 | . . . . . 1 . 1 . 1 . 1 . 1 . . . . Unknown Exits Taken 8 | 1 1 1 1 1 . . . . . . . . . 1 1 1 . Scrap Searched 1 | . . 1 . . . . . . . . . . . . . . . Spaces Dug 54 | . . . . 10 5 4 . . . . . . 1 . 33 . 1 Terrain Destroyed 843 | . 37 . . 53 102 85 88 5 3 5 . . 17 39 51 2 356 Melee . | . . . . . . . . . . . . . . . . . . Projectile 110 | . . . . . 22 3 . . 3 1 . . 8 39 . 2 32 AOE 733 | . 37 . . 53 80 82 88 5 . 4 . . 9 . 51 . 324 Terrain Rammed . | . . . . . . . . . . . . . . . . . . Walls Destroyed . | . . . . . . . . . . . . . . . . . . Machines Disabled . | . . . . . . . . . . . . . . . . . . Actions | -11 -10 -10 -10 -9 -8 -8 -8 -8 -7 -7 -6 -6 -6 -6 -6 -6 -6 --------- Run | Scr Mat Min Exi Min Mat Gar Mat Gar Fac Gar Fac Gar Fac Ext Cet Arc Hub Total 8525 | . 222 67 405 337 545 986 828 559 919 723 165 684 455 782 319 74 455 Wait 350 | . 2 . . 63 11 21 34 . 56 40 10 48 6 16 6 11 26 Move 6595 | . 145 59 393 261 431 838 564 431 701 552 129 528 367 534 245 57 360 Hop . | . . . . . . . . . . . . . . . . . . Pick Up 128 | . 9 . 3 1 15 16 12 7 8 16 4 11 5 5 14 . 2 Fast Attach 83 | . . . . 3 10 . 15 6 6 6 3 8 6 14 6 . . Attach 63 | . 6 . . . 1 5 7 2 9 2 3 3 4 10 5 . 6 Detach 11 | . . . . . 1 2 1 . 3 1 . . . . 3 . . Swap 88 | . 1 . 3 . 4 12 17 8 4 11 3 3 8 10 2 1 1 Drop 171 | . 4 . 6 3 13 20 23 13 10 15 5 11 8 19 18 . 3 Fire 933 | . 50 6 . 4 59 72 146 75 122 61 8 67 50 138 20 5 50 Melee 5 | . . . . . . . . 5 . . . . . . . . . Ram . | . . . . . . . . . . . . . . . . . . Kick 2 | . . . . . . . . . . . . . 1 1 . . . Crush 24 | . 5 2 . 2 . . 9 . . . . . . . . . 6 Escape Stasis 29 | . . . . . . . . 4 . 19 . 5 . . . . 1 Rewire 43 | . . . . . . . . 8 . . . . . 35 . . . Trap . | . . . . . . . . . . . . . . . . . . Miscellaneous . | . . . . . . . . . . . . . . . . . . Route ------- -11/Scrapyard -10/Materials -10/Mines (discovered 3 exits: [*Mat x2] / *Exi) -10/Exiles -9/Mines -8/Materials (discovered 3 exits: *Fac x2 / Gar) -8/Garrison (discovered 3 exits: *Mat x3) -8/Materials (discovered 3 exits: *Fac x2 / Gar) -8/Garrison -7/Factory (discovered 2 exits: *Fac / Gar) -7/Garrison (discovered 3 exits: *Fac x3) -6/Factory (discovered 2 exits: *Fac / Gar) -6/Garrison (discovered 2 exits: *Fac x2) -6/Factory (discovered 4 exits: Low x2 / *Ext x2) -6/Extension (discovered 2 exits: *Fac / *Cet) -6/Cetus (discovered 2 exits: *Fac / [*Arc]) -6/Archives (discovered 2 exits: *Fac / *Hub) -6/Hub_04(d) (discovered 3 exits: *Fac x3) History --------- Turn | Location | Event 1 | -11/Scrapyard | Discovered new exit (range 0) 1 | -11/Scrapyard | Entered Materials 101 | -10/Materials | Core integrity fell below 50% 165 | -10/Materials | Destroyed 10 combat bots 170 | -10/Materials | Lost 5 parts (1p1n3w) 311 | -10/Materials | Build established: Mutant 323 | -10/Materials | Discovered new exit (range 15) 365 | -10/Materials | Entered Mines 377 | -10/Mines | Discovered new exit (range 16) 407 | -10/Mines | Discovered new exit (range 9) 471 | -10/Mines | Deemed a non-threat by the Exiles lab entrance 472 | -10/Mines | Discovered new exit (range 5) 479 | -10/Mines | Entered Exiles 519 | -10/Exiles | Met 8R-AWN 547 | -10/Exiles | Met EX-HEX 615 | -10/Exiles | Met EX-DEC 646 | -10/Exiles | Learned location of Zion (-7) 783 | -10/Exiles | Met EX-BIN 801 | -10/Exiles | Aligned with FarCom system 803 | -10/Exiles | Given EX-Vault access code 839 | -10/Exiles | Opened EX-Vault 858 | -10/Exiles | Found AWS/Gauss 862 | -10/Exiles | Found AWS/Autocannon 871 | -10/Exiles | Found Deploy-a-Sentry 906 | -10/Exiles | Warned to stay clear of 0b10 Research branches 1000 | -10/Exiles | Visited The Gauntlet 1098 | -10/Exiles | Discovered new exit (range 14) 1119 | -10/Exiles | Stole three prototypes: AWS/Gauss, AWS/Autocannon, Deploy-a-Sentry 1119 | -10/Exiles | Entered Mines 1179 | -9/Mines | Found the Drone Emporium 1316 | -9/Mines | Received a Rocket Launcher from a helpful Derelict 1320 | -9/Mines | DAS Turret deployed 1440 | -9/Mines | Met a Derelict who couldn't figure out how to use a Trap Extractor 1607 | -9/Mines | Discovered new exit (range 5) 1618 | -9/Mines | Entered Materials 1618 | -8/Materials | Evolved 4 slots: Propulsion x1, Utility x3 1641 | -8/Materials | Central database locked down 1692 | -8/Materials | Destroyed 8 combat bots 2199 | -8/Materials | Build established: Scavenger-Mutant 2211 | -8/Materials | Discovered new exit (range 4) 2339 | -8/Materials | Discovered new exit (range 15) 2503 | -8/Materials | Identified exit to Garrison 2515 | -8/Materials | Entered Garrison 2585 | -8/Garrison | Triggered checkpoint 2669 | -8/Garrison | Destroyed 7 combat bots 2797 | -8/Garrison | Destroyed 13 combat bots 2896 | -8/Garrison | Triggered checkpoint 2909 | -8/Garrison | Garrison Relay disabled 2964 | -8/Garrison | Discovered new exit (range 14) 3197 | -8/Garrison | Discovered new exit (range 8) 3258 | -8/Garrison | Triggered checkpoint 3320 | -8/Garrison | Discovered new exit (range 9) 3341 | -8/Garrison | Installed Relay Interface Framework 3668 | -8/Garrison | Triggered checkpoint 3744 | -8/Garrison | Garrison Relay disabled 4038 | -8/Garrison | Entered Materials 4270 | -8/Materials | Core integrity fell below 50% 4542 | -8/Materials | Discovered new exit (range 10) 4709 | -8/Materials | Build established: Mutant 5003 | -8/Materials | Discovered new exit (range 16) 5122 | -8/Materials | Build established: Scavenger-Mutant 5372 | -8/Materials | Identified exit to Garrison 5372 | -8/Materials | Entered Garrison 5372 | -8/Garrison | Accompanied by 1 ally 5380 | -8/Garrison | Expanded RIF knowledge: Signal Jamming 5514 | -8/Garrison | Triggered checkpoint 5617 | -8/Garrison | Garrison Relay disabled 5732 | -8/Garrison | Triggered checkpoint 5733 | -8/Garrison | Triggered checkpoint 6011 | -8/Garrison | Discovered new exit (range 10) 6134 | -8/Garrison | Triggered checkpoint 6158 | -8/Garrison | Garrison Relay disabled 6299 | -8/Garrison | Entered Factory 6299 | -7/Factory | Evolved 2 slots: Propulsion x1, Utility x1 6301 | -7/Factory | FarCom data flow suspended 6666 | -7/Factory | Garrison activated, responded to threat 6963 | -7/Factory | Repaired Cmb. Airjet? 7137 | -7/Factory | Discovered new exit (range 16) 7202 | -7/Factory | Identified exit to Garrison 7202 | -7/Factory | Entered Garrison 7210 | -7/Garrison | Triggered checkpoint 7242 | -7/Garrison | Garrison Relay disabled 7321 | -7/Garrison | Triggered checkpoint 7444 | -7/Garrison | Destroyed 7 combat bots 7487 | -7/Garrison | Lost 3 parts (1n1u1w) 7552 | -7/Garrison | Discovered new exit (range 12) 7686 | -7/Garrison | Triggered checkpoint 7721 | -7/Garrison | Discovered new exit (range 12) 7774 | -7/Garrison | Triggered checkpoint 7929 | -7/Garrison | Garrison Relay disabled 8068 | -7/Garrison | Discovered new exit (range 8) 8092 | -7/Garrison | Expanded RIF knowledge: Watcher Feeds 8142 | -7/Garrison | Triggered checkpoint 8196 | -7/Garrison | Garrison Relay disabled 8245 | -7/Garrison | Entered Factory 8245 | -6/Factory | Evolved 2 slots: Utility x1, Weapon x1 8378 | -6/Factory | Discovered new exit (range 16) 8522 | -6/Factory | Identified exit to Garrison 8522 | -6/Factory | Entered Garrison 8522 | -6/Garrison | Accompanied by 1 ally 8669 | -6/Garrison | Build established: Scavenger-Gunner 8700 | -6/Garrison | Spotted B-75 Beast 8763 | -6/Garrison | Triggered checkpoint 8858 | -6/Garrison | Triggered checkpoint 9016 | -6/Garrison | Triggered checkpoint 9055 | -6/Garrison | Triggered checkpoint 9074 | -6/Garrison | Triggered checkpoint 9084 | -6/Garrison | Destroyed B-75 Beast 9084 | -6/Garrison | Triggered checkpoint 9192 | -6/Garrison | Triggered checkpoint 9325 | -6/Garrison | Discovered new exit (range 10) 9352 | -6/Garrison | Expanded RIF knowledge: Autooverride 9478 | -6/Garrison | Garrison Relay disabled 9595 | -6/Garrison | Discovered new exit (range 11) 9735 | -6/Garrison | Entered Factory 10060 | -6/Factory | Identified exit to Lower Caves 10060 | -6/Factory | Identified exit to Extension 10347 | -6/Factory | Found Launcher Loader 10482 | -6/Factory | Entered Extension 10782 | -6/Extension | Disrupted transfer network 10832 | -6/Extension | First assault squad dispatched 10859 | -6/Extension | Rescued a captive Derelict 10999 | -6/Extension | Rescued a captive Derelict 11000 | -6/Extension | Rescued a captive Derelict 11280 | -6/Extension | Core integrity fell below 50% 11322 | -6/Extension | Destroyed B-75 Beast 11342 | -6/Extension | Build established: Scavenger-Tank 11342 | -6/Extension | Lost 3 parts (2u1w) 11343 | -6/Extension | Spotted B-75 Beast 11372 | -6/Extension | Destroyed B-75 Beast 11510 | -6/Extension | Rescued a captive Derelict 11558 | -6/Extension | Rescued a captive Derelict 11582 | -6/Extension | Rescued a captive Derelict 11650 | -6/Extension | Rescued A7 11666 | -6/Extension | Rescued a captive Derelict 11667 | -6/Extension | Rescued a captive Derelict 11809 | -6/Extension | Discovered new exit (range 10) 11811 | -6/Extension | Discovered new exit (range 6) 11839 | -6/Extension | Entered Cetus 11839 | -6/Cetus | Accompanied by 3 allies (A7) 11844 | -6/Cetus | Acquired a Cetus Manufacturing Module code from A7 11871 | -6/Cetus | Destroyed Cetus Guard 11871 | -6/Cetus | Spotted Cetus Guard 11871 | -6/Cetus | Spotted Cetus Guard 11874 | -6/Cetus | Spotted Cetus Guard 11875 | -6/Cetus | Destroyed Cetus Guard 11875 | -6/Cetus | Destroyed Cetus Guard 11876 | -6/Cetus | Destroyed Cetus Guard 11993 | -6/Cetus | Started Cetus Manufacturing Module 12013 | -6/Cetus | Discovered new exit (range 16) 12018 | -6/Cetus | Manufactured an Enhanced Grunt 12037 | -6/Cetus | Discovered new exit (range 27) 12043 | -6/Cetus | Manufactured an Enhanced Grunt 12046 | -6/Cetus | Cetus Manufacturing Module disabled 12053 | -6/Cetus | Spotted Cetus Guard 12053 | -6/Cetus | Spotted Cetus Guard 12054 | -6/Cetus | Destroyed Cetus Guard 12054 | -6/Cetus | Destroyed Cetus Guard 12055 | -6/Cetus | Destroyed Cetus Guard 12056 | -6/Cetus | Destroyed Cetus Guard 12076 | -6/Cetus | Met Revision 17 12305 | -6/Cetus | Entered Archives 12305 | -6/Archives | Accompanied by 3 allies (A7) 12367 | -6/Archives | Discovered new exit (range 15) 12387 | -6/Archives | Discovered new exit (range 13) 12423 | -6/Archives | Entered Hub_04(d) 12423 | -6/Hub_04(d) | Accompanied by 1 ally 12435 | -6/Hub_04(d) | Discovered new exit (range 15) 12455 | -6/Hub_04(d) | Discovered new exit (range 26) 12464 | -6/Hub_04(d) | Discovered new exit (range 24) 12481 | -6/Hub_04(d) | Identified exit to Factory 13123 | -6/Hub_04(d) | First assault squad dispatched 13143 | -6/Hub_04(d) | Network Hub disabled 13150 | -6/Hub_04(d) | Spotted Lightning 13150 | -6/Hub_04(d) | Spotted Lightning 13150 | -6/Hub_04(d) | Spotted Lightning 13151 | -6/Hub_04(d) | Spotted Lightning 13151 | -6/Hub_04(d) | Spotted Lightning 13151 | -6/Hub_04(d) | Spotted Lightning 13153 | -6/Hub_04(d) | Spotted Lightning 13156 | -6/Hub_04(d) | Spotted Lightning 13157 | -6/Hub_04(d) | Spotted Lightning 13161 | -6/Hub_04(d) | Crushed by falling debris 13162 | -6/Hub_04(d) | System corruption reached 10% 13165 | -6/Hub_04(d) | Core integrity fell below 20% 13178 | -6/Hub_04(d) | Spotted Lightning 13178 | -6/Hub_04(d) | Spotted Lightning 13179 | -6/Hub_04(d) | Spotted Lightning 13201 | -6/Hub_04(d) | System corruption reached 30% 13201 | -6/Hub_04(d) | Network Hub disabled 13204 | -6/Hub_04(d) | Destroyed by Lightning with EMDS Last Messages --------------- 13201_ Lrg. Battery fried. 13201_ Com. Wheel fried. 13201_ I-36 Angel destroyed. 13201_ G-50 Soldier IFF system glitched. 13202_ G-50 Soldier system terminally corrupted. 13202_ Adv. Heat Sink fried. 13202_ Lgt. Angular Momentum Engine fried. 13202_ Penetrated by EMDS Slug. 13202_ EMDS Slug penetrates Wall. 13202_ Penetrated by EMDS Slug. 13202_ EMDS Slug penetrates Wall. 13203_ EMDS Slug penetrates I-47 Archangel. 13203_ Penetrated by EMDS Slug. 13204_ I-47 Archangel system terminally corrupted. 13204_ Com. Battery fried. 13204_ Com. Wheel fried. 13204_ EMDS Slug penetrates Wall. 13204_ Penetrated by EMDS Slug. 13204_ EMDS Slug penetrates Wall. [Achievement: I Was Wrong!] Map ----- +----------------------------------------------------+ | ?????????????????????????# ! " " " #???????? | | ?????????????????????????# #???????? | | ?????????????????????????########+#######????????? | | ????????????????????????????# #?????????? | | ????????????????????????????# #?????????? | | ????????????????????????????# #?????????? | | ???????????????????#######??# ########?????????? | | ??????????????????? * ?# #????????????????? | | ###???????????????# ! ""?# #????????????????? | | ??????????????? "" # #????????????????? | | #???????????????" " T" # #????????????????? | | #???????????????" " "" + #????????????????? | | #???????????????" " "" # #????????????????? | | ??????????????? # #????????????????? | | ??????????????# ?# #????####????????? | | ?? ????????????########## ##???#T"###??????? | | ???"????????????????????# ##### "#"######## | | ??? ????????????????????# **%! [%!!* | | ???"???????????????##??## < % =%|% == | | ???? ??????????????## ## # !%=*=%= | | ???#+#???#??######## # # #####+###*####### | | /#???# #???! !# ;;;;;;;;;;# % #=#??#""" | | #???# #?? ; ; ;# " # ####""T | | ##### #?? ;;;;;;;;;;;;; ;# " # ## | | +? ; ; ;# " # + """" | | ##### #? ; @; ;# # %# """" | | ##???# #? ; % ; ;# " # # """" | | ?????# #???#;;; ; ! ;# " + # """" | | ?????# #???# ; ;! ! ;; # +% | | ?????# #####;;; ; !% ;; [# # !! | | #???# ; ; ;# # # !! | | #???# ; ;;;;;;;;;;##+### # !! | | #???# ; ; ]## # | | #???# ; !// ; ##%%+ | | #?### #####";;;;;;;;;;;;;; ## # | | #?#"" #?###"";;l;*;hh; ; % = ## # | | #?#T #?# gghh%= ##;;;;;#########%%###### | | #?### #?# h!/h#####[g%=########## ##### | | #???# #?# "" ;%i =%=!i!!== ! | | #????# #?# "" " " i *%[[